fUST/lending_fUST_20240529
["ID","MTS","AMOUNT","RATE_DAILY","PERIOD"]
[328170807,1716995438840,-4229.78307947,0.00024724,2]
[328170808,1716995438850,-187.99724105,0.00024996,2]
[328170809,1716995438859,-456.78558336,0.00024996,2]
[328170810,1716995438869,-154.84515485,0.00024997,2]
[328170811,1716995438878,-1979.63054003,0.00024998,2]
[328170812,1716995438890,-758.41658575,0.00024998,2]
[328170813,1716995438901,-155.18257432,0.00024998,4]
[328170814,1716995438912,-29080.02465145,0.00024998,2]
[328170815,1716995438922,-87956.14262183,0.00025,5]
[328170816,1716995438936,-143.37487606,0.00025,5]
[328170817,1716995438945,-1526.06073159,0.00025,2]
[328170818,1716995438957,-773.29627998,0.00025,2]
[328170819,1716995438970,-804.52019925,0.00025,2]
[328170820,1716995438982,-19771.05800079,0.00025,2]
[328170821,1716995438991,-156.8699674,0.00025,2]
[328170822,1716995439001,-150.0,0.000265,2]
[328170823,1716995439010,-158.07449977,0.00027178,2]
[328170824,1716995439021,-341.86,0.000273,3]
[328170825,1716995439180,-341.86,0.000273,3]
[328170826,1716995439190,-341.86,0.000273,3]
[328170827,1716995439200,-341.86,0.000273,3]
[328170828,1716995439210,-341.86,0.000273,3]
[328170829,1716995439220,-341.86,0.000273,3]
[328170830,1716995439230,-341.86,0.000273,3]
[328170831,1716995439240,-341.86,0.000273,3]
[328170832,1716995439249,-244.88910179,0.000273,3]
[328170833,1716995439262,-96.97089821,0.000273,3]
[328170834,1716995439273,-341.86,0.000273,3]
[328170835,1716995439282,-287.56803994,0.000273,3]
[328170841,1716995442336,-54.29196006,0.000273,3]
[328170842,1716995442346,-341.86,0.000273,3]
[328170843,1716995442355,-341.86,0.000273,3]
[328170844,1716995442364,-341.86,0.000273,3]
[328170845,1716995442373,-341.86,0.000273,3]
[328170846,1716995442382,-341.86,0.000273,3]
[328170847,1716995442391,-341.86,0.000273,3]
[328170848,1716995442401,-341.86,0.000273,3]
[328170849,1716995442411,-341.86,0.000273,3]
[328170850,1716995442420,-341.86,0.000273,3]
[328170851,1716995442429,-174.74267377,0.000274,2]
[328170852,1716995442439,-97.67536617,0.00028061,2]
[328170853,1716995442451,-60.3991336,0.00028061,2]
[328170854,1716995442460,-158.07449977,0.00029086,2]
[328170855,1716995442469,-341.86,0.000292,3]
[328170856,1716995442478,-341.86,0.000292,3]
[328170857,1716995442488,-341.86,0.000292,3]
[328170858,1716995442497,-341.86,0.000292,3]
[328170859,1716995442506,-341.86,0.000292,3]
[328170860,1716995442515,-341.86,0.000292,3]
[328170861,1716995442526,-341.86,0.000292,3]
[328170862,1716995442535,-341.86,0.000292,3]
[328170863,1716995442544,-341.86,0.000292,3]
[328170864,1716995442553,-341.86,0.000292,3]
[328170865,1716995442563,-341.86,0.000292,3]
[328170866,1716995442573,-341.86,0.000292,3]
[328170867,1716995442582,-341.86,0.000292,3]
[328170868,1716995442592,-341.86,0.000292,3]
[328170869,1716995442604,-341.86,0.000292,3]
[328170870,1716995442615,-341.86,0.000292,3]
[328170871,1716995442624,-341.86,0.000292,3]
[328170872,1716995442634,-341.86,0.000292,3]
[328170873,1716995442643,-341.86,0.000292,3]
[328170874,1716995442652,-341.86,0.000292,3]
[328170875,1716995442661,-158.07449977,0.00029273,2]
[328170876,1716995442670,-151.85986035,0.00029342,2]
[328170877,1716995442679,-289.0,0.0002971,6]
[328170878,1716995442689,-158.07449977,0.00029744,2]
[328170879,1716995442698,-5469.38053493,0.0003,2]
[328170880,1716995442707,-191.0,0.0003,2]
[328170881,1716995442717,-506.88018151,0.00030136,4]
[328170882,1716995442727,-506.87849033,0.00030136,4]
[328170883,1716995442736,-524.43466535,0.00030136,4]
[328170884,1716995442748,-488.43267025,0.00030136,4]
[328170885,1716995442757,-158.07449977,0.00030225,7]
[328170886,1716995442766,-560.29221,0.0003031,2]
[328170887,1716995442777,-4067.14418338,0.00030998,2]
[328170900,1716995444102,-550.63036897,0.00030988,3]
[328170901,1716995444114,-5031.52963103,0.00030988,3]
[328170902,1716995444123,-56799.33991079,0.00030998,2]
[328170903,1716995444135,-6500.17014242,0.00030998,2]
[328170909,1716995444334,-7625.00974839,0.00030998,2]
[328170912,1716995446739,-2462.85496297,0.00020913,2]
[328170914,1716995446751,-878.42385116,0.00020913,2]
[328170917,1716995447022,-3255.0198965,0.00020913,2]
[328170918,1716995447035,-94769.22005756,0.00030998,2]
[328170919,1716995463413,156.64393718,0.00022,7]
[328170921,1716995542984,273.37336231,0.00022,7]
[328170929,1716996384896,837.7247826,8.909e-05,2]
[328170936,1716996408742,329.53274304,9.803e-05,2]
[328170937,1716996409128,-154.82968734,9.901e-05,2]
[328170938,1716996409151,-160.69812984,9.902e-05,2]
[328170939,1716996412976,921.85323911,9.9e-05,2]
[328170940,1716996413864,758.57976486,9.9e-05,2]
[328170941,1716996424523,158.74677963,9.9e-05,2]
[328170942,1716996425458,285.46504925,9.9e-05,2]
[328170943,1716996427136,154.82968734,9.9e-05,2]
[328170944,1716996431979,522.0982881,9.9e-05,2]
[328170945,1716996433039,194.73719804,9.9e-05,2]
[328170946,1716996437626,1044.69294597,9.899e-05,2]
[328170947,1716996438626,158.66561217,9.9e-05,2]
[328170948,1716996439458,285.31097948,9.9e-05,2]
[328170949,1716996443143,158.30213055,9.9e-05,2]
[328170950,1716996443309,215.95975088,9.9e-05,2]
[328170951,1716996443975,572.82423381,9.9e-05,2]
[328170952,1716996447496,2109.94083119,9.9e-05,2]
[328170953,1716996448810,194.73719804,9.9e-05,2]
[328170954,1716996450558,154.82968734,9.9e-05,2]
[328170955,1716996451060,836.65686665,9.9e-05,2]
[328170956,1716996451397,12420.3408692,9.9e-05,2]
[328170957,1716996452095,-159.22743012,9.9e-05,2]
[328170958,1716996546221,-24900.0,8.887e-05,2]
[328170959,1716996546242,-2033.20251904,8.895e-05,2]
[328170960,1716996546269,-154.82968734,8.896e-05,2]
[328170961,1716996546290,-685.47338776,8.896e-05,2]
[328170962,1716996546313,-156.68308505,8.897e-05,2]
[328170963,1716996546333,-154.82968734,8.897e-05,2]
[328170964,1716996546354,-1980.05193058,8.897e-05,2]
[328170965,1716996546373,-2117.39226672,8.897e-05,2]
[328170966,1716996546394,-59473.83201727,8.897e-05,2]
[328170967,1716996546414,-154.82968734,8.898e-05,2]
[328170968,1716996546434,-181.68216516,8.898e-05,2]
[328170969,1716996546454,-9572.33351784,8.898e-05,2]
[328170970,1716996546474,-7904.3508113,8.898e-05,2]
[328170971,1716996546494,-3152.3561543,8.899e-05,2]
[328170972,1716996546516,-921.85323911,9.883e-05,2]
[328170973,1716996546535,-836.65686665,9.884e-05,2]
[328170974,1716996546556,-215.95975088,9.885e-05,2]
[328170975,1716996546575,-2109.94083119,9.885e-05,2]
[328170976,1716996546595,-1044.69294597,9.886e-05,2]
[328170977,1716996546615,-19241.00139084,9.887e-05,2]
[328170978,1716996546635,-57712.64387214,9.888e-05,2]
[328170979,1716996546654,-154.95346446,9.899e-05,2]
[328170980,1716996546673,-194.44930184,9.899e-05,2]
[328170981,1716996546693,-2091.76875712,9.9e-05,2]
[328170982,1716996546713,-235.49029532,9.904e-05,2]
[328170983,1716996546732,-758.25340664,9.904e-05,2]
[328170984,1716996546752,-1359.6153486,9.916e-05,2]
[328170985,1716996546773,-163.14055177,9.923e-05,2]
[328170986,1716996546793,-5273.155609,9.938e-05,2]
[328170987,1716996546814,-460.68011164,0.00010959,2]
[328170988,1716996547113,-25.31988836,0.00010959,2]
[328170989,1716996547134,-150.0,0.000189,2]
[328170990,1716996547157,-500.0,0.00019178,2]
[328170991,1716996547180,-409.00941753,0.00019178,2]
[328170992,1716996547202,-554.47921071,0.00019178,2]
[328170993,1716996547229,-416.23258366,0.00019178,2]
[328170994,1716996559438,160.41800127,9.9e-05,2]
[328170995,1716996560114,-1930.67578205,9.9e-05,2]
[328170996,1716996560875,78.6459831,9.999e-05,2]
[328170997,1716996566101,-606.82740466,9.999e-05,2]
[328170998,1716996566129,-83.76741634,0.00019178,2]
[328170999,1716996566156,-84.13859555,0.00019178,2]
[328171078,1716996633029,-166.666666,0.00021918,2]
[328171080,1716996633039,-156.14550824,0.00022,2]
[328171083,1716996633049,-263.67450645,0.00022,2]
[328171085,1716996633058,-2050.76376145,0.00022,2]
[328171090,1716996633070,-1670.99319192,0.00022,2]
[328171093,1716996633087,-1284.5294023,0.00022,2]
[328171096,1716996633100,-4259.07481056,0.00022,2]
[328171099,1716996633109,-166.666666,0.00022431,2]
[328171101,1716996633119,-166.666666,0.00022944,2]
[328171103,1716996633129,-166.666666,0.00023456,2]
[328171105,1716996633138,-166.666666,0.00023969,2]
[328171107,1716996633147,-160.495791,0.00024384,2]
[328171109,1716996633156,-467.47083798,0.00024384,2]
[328171111,1716996633169,-72.83155202,0.00024384,2]
[328171113,1716996633178,-166.666666,0.00024482,2]
[328171115,1716996633188,-1158.93178198,0.000265,2]
[328171117,1716996633199,-1841.06821802,0.000265,2]
[328171120,1716996633209,-920.35642522,0.0002651,2]
[328171122,1716996633220,-441.04596982,0.0002651,2]
[328171124,1716996633231,-1453.99588173,0.0002651,2]
[328171126,1716996633243,-1042.42645823,0.0002651,2]
[328171128,1716996633252,-1051.57865686,0.00026713,2]
[328171130,1716996633262,-156.62406709,0.00026813,2]
[328171132,1716996633272,-237.63394745,0.00026848,2]
[328171133,1716996633282,-389.57546466,0.00026848,2]
[328171135,1716996633294,-500.0,0.00026848,2]
[328171137,1716996633304,-500.0,0.00026848,2]
[328171139,1716996633316,-500.0,0.00026848,2]
[328171141,1716996633326,-500.0,0.00026848,2]
[328171143,1716996633340,-500.0,0.00026848,2]
[328171145,1716996633349,-500.0,0.00026848,2]
[328171146,1716996633359,-156.62406709,0.00026895,2]
[328171147,1716996633368,-7904.3508113,0.00027298,2]
[328171149,1716996633380,-154.84515485,0.00027298,2]
[328171151,1716996633390,-181.68216516,0.00027299,2]
[328171153,1716996633399,-1980.05193058,0.00027299,2]
[328171155,1716996633409,-1031.89108919,0.000273,2]
[328171157,1716996633419,-9572.33351784,0.00027399,2]
[328171159,1716996633429,-182.51389951,0.000274,2]
[328171161,1716996633438,-205.18,0.000274,3]
[328171163,1716996633448,-205.18,0.000274,3]
[328171165,1716996633458,-205.18,0.000274,3]
[328171166,1716996633467,-205.18,0.000274,3]
[328171167,1716996633476,-205.18,0.000274,3]
[328171168,1716996633485,-205.18,0.000274,3]
[328171169,1716996633494,-205.18,0.000274,3]
[328171170,1716996633503,-205.18,0.000274,3]
[328171171,1716996633512,-205.18,0.000274,3]
[328171172,1716996633521,-205.18,0.000274,3]
[328171173,1716996633530,-205.18,0.000274,3]
[328171174,1716996633539,-205.18,0.000274,3]
[328171175,1716996633548,-205.18,0.000274,3]
[328171176,1716996633557,-205.18,0.000274,3]
[328171177,1716996633566,-205.18,0.000274,3]
[328171178,1716996633575,-205.18,0.000274,3]
[328171179,1716996633587,-205.18,0.000274,3]
[328171180,1716996633595,-205.18,0.000274,3]
[328171181,1716996633604,-205.18,0.000274,3]
[328171183,1716996633613,-205.18,0.000274,3]
[328171185,1716996633623,-156.62406709,0.00028073,2]
[328171187,1716996633632,-395.0,0.00028845,6]
[328171189,1716996633642,-2108.64763921,0.00028949,2]
[328171191,1716996633651,-156.62406709,0.00028952,2]
[328171193,1716996633660,-2376.62,0.00028969,3]
[328171195,1716996633670,-4651.8,0.00028969,3]
[328171197,1716996633679,-3480.4,0.00028969,3]
[328171199,1716996633689,-2900.33,0.00028969,3]
[328171201,1716996633699,-530.41137456,0.00028977,2]
[328171203,1716996633708,-187.88258466,0.00028977,2]
[328171205,1716996633718,-1122.8991609,0.00028977,2]
[328171207,1716996633728,-200.55144178,0.00028978,2]
[328171209,1716996633737,-215.61372985,0.00028978,2]
[328171211,1716996633747,-2116.32006058,0.00028978,2]
[328171213,1716996633756,-1043.63010475,0.00028978,2]
[328171215,1716996633766,-678.34758959,0.00028978,2]
[328171217,1716996633775,-156.42359497,0.00028978,2]
[328171219,1716996633784,-55755.43820947,0.00028979,2]
[328171221,1716996633794,-154.95346446,0.00028979,2]
[328171223,1716996633803,-520.81611433,0.00028979,2]
[328171225,1716996633812,-17214.45386087,0.00028979,2]
[328171306,1716996639418,-194.0753606,0.00020913,2]
[328171307,1716996639428,-500.0,0.00026848,2]
[328171308,1716996639438,-500.0,0.00026848,2]
[328171309,1716996639449,-500.0,0.00026848,2]
[328171310,1716996639459,-500.0,0.00026848,2]
[328171311,1716996639469,-221.64541213,0.00026848,2]
[328171312,1716996639481,-278.35458787,0.00026848,2]
[328171313,1716996639492,-500.0,0.00026848,2]
[328171314,1716996639502,-500.0,0.00026848,2]
[328171315,1716996639513,-500.0,0.00026848,2]
[328171316,1716996639523,-500.0,0.00026848,2]
[328171317,1716996639533,-500.0,0.00026848,2]
[328171318,1716996639543,-500.0,0.00026848,2]
[328171319,1716996639553,-9039.67048826,0.00028979,2]
[328171320,1716996639563,-101698.53621223,0.0002898,2]
[328171321,1716996639573,-205.18,0.000292,3]
[328171322,1716996639583,-205.18,0.000292,3]
[328171323,1716996639595,-205.18,0.000292,3]
[328171324,1716996639605,-205.18,0.000292,3]
[328171325,1716996639616,-205.18,0.000292,3]
[328171326,1716996639626,-205.18,0.000292,3]
[328171327,1716996639636,-205.18,0.000292,3]
[328171328,1716996639646,-205.18,0.000292,3]
[328171329,1716996639656,-205.18,0.000292,3]
[328171330,1716996639666,-205.18,0.000292,3]
[328171331,1716996639677,-205.18,0.000292,3]
[328171332,1716996639687,-205.18,0.000292,3]
[328171333,1716996639697,-205.18,0.000292,3]
[328171334,1716996639707,-205.18,0.000292,3]
[328171335,1716996639716,-205.18,0.000292,3]
[328171336,1716996639727,-205.18,0.000292,3]
[328171337,1716996639737,-205.18,0.000292,3]
[328171338,1716996639935,-205.18,0.000292,3]
[328171339,1716996639946,-205.18,0.000292,3]
[328171340,1716996639956,-205.18,0.000292,3]
[328171341,1716996639965,-155.21441404,0.0002936,2]
[328171342,1716996639975,-156.62406709,0.00029375,2]
[328171343,1716996639985,-151.0,0.00029999,2]
[328171344,1716996639995,-151.0,0.00029999,2]
[328171345,1716996640004,-151.0,0.00029999,2]
[328171346,1716996640014,-574.886322,0.00029999,2]
[328171347,1716996640025,-574.886322,0.00029999,2]
[328171348,1716996640035,-152.800291,0.00029999,2]
[328171349,1716996640045,-152.800291,0.00029999,2]
[328171350,1716996640055,-132449.70656882,0.00029999,2]
[328171351,1716996640068,-15118.44857343,0.00029999,2]
[328171352,1716996640080,-1259.41545977,0.00029999,2]
[328171353,1716996640094,-999.737121,0.00029999,2]
[328171354,1716996640106,-6494.94164261,0.00029999,2]
[328171355,1716996640118,-976.47000373,0.00029999,2]
[328171356,1716996640130,-6048.88727965,0.00029999,2]
[328171372,1716996643301,-11789.85938939,0.00029999,2]
[328171373,1716996643311,-25795.14061067,0.0003,2]
[328171375,1716996643324,-803.50534785,0.0003,2]
[328171377,1716996643337,-7428.95509376,0.0003,2]
[328171378,1716996643351,-14778.98386406,0.0003,2]
[328171379,1716996643363,-1193.41508366,0.0003,2]
[328171380,1716996643373,-17072.0434353,0.0003,4]
[328171381,1716996643384,-752.84226243,0.0003,4]
[328171382,1716996643395,-2211.8594128,0.0003,4]
[328171383,1716996643407,-10831.22349522,0.0003,4]
[328171384,1716996643418,-556.39957601,0.0003,4]
[328171399,1716996644539,-13690.62000041,0.0003,4]
[328171405,1716996644941,-444.11716908,0.0003,4]
[328171407,1716996644954,-4440.89464875,0.0003,4]
[328171408,1716996644963,-30431.0,0.0003,7]
[328171410,1716996644973,-151.0,0.0003,2]
[328171412,1716996644983,-151.0,0.0003,2]
[328171414,1716996644993,-151.0,0.0003,2]
[328171416,1716996645002,-151.0,0.0003,2]
[328171418,1716996645011,-151.0,0.0003,2]
[328171419,1716996645020,-324.897162,0.0003,2]
[328171421,1716996645029,-324.897162,0.0003,2]
[328171422,1716996645038,-664.333733,0.0003,2]
[328171423,1716996645048,-664.333733,0.0003,2]
[328171424,1716996645057,-1059.10099995,0.0003,2]
[328171425,1716996645070,-69.03436405,0.0003,2]
[328171426,1716996645079,-151.0,0.0003,2]
[328171427,1716996645089,-1128.135364,0.0003,2]
[328171428,1716996645099,-152.745599,0.0003,2]
[328171429,1716996645108,-151.0,0.0003,2]
[328171430,1716996645117,-151.0,0.0003,2]
[328171431,1716996645126,-164.139363,0.0003,2]
[328171432,1716996645135,-574.886322,0.0003,2]
[328171433,1716996645145,-574.886322,0.0003,2]
[328171434,1716996645154,-152.800291,0.0003,2]
[328171435,1716996645163,-152.800291,0.0003,2]
[328171436,1716996645172,-154.590921,0.0003,2]
[328171437,1716996645181,-154.590921,0.0003,2]
[328171438,1716996645190,-287.095237,0.0003,2]
[328171439,1716996645199,-287.095237,0.0003,2]
[328171440,1716996645209,-151.0,0.0003,2]
[328171441,1716996645218,-188.994746,0.0003,2]
[328171442,1716996645230,-188.994746,0.0003,2]
[328171443,1716996645240,-524.66216611,0.00030136,4]
[328171444,1716996645249,-488.34156332,0.00030136,4]
[328171445,1716996645259,-500.0,0.00030136,4]
[328171446,1716996645268,-500.0,0.00030136,4]
[328171447,1716996645278,-559.1363484,0.00030136,4]
[328171448,1716996645293,-232.91427291,0.00030136,4]
[328171449,1716996645302,-1051.57865682,0.00030203,2]
[328171450,1716996645311,-540.30239,0.0003031,2]
[328171451,1716996645321,-500.0,0.0003041,4]
[328171452,1716996645332,-459.28,0.00030684,4]
[328171453,1716996645342,-4229.78307947,0.00030909,2]
[328171454,1716996645352,-500.0,0.00030964,4]
[328171455,1716996645362,-6895.68318444,0.00030965,5]
[328171456,1716996645373,-156.62406709,0.0003098,7]
[328171457,1716996645383,-154.93802479,0.00030993,4]
[328171458,1716996645392,-456.0641796,0.00030993,4]
[328171459,1716996645401,-514.21922606,0.00030993,4]
[328171460,1716996645411,-1620.13802213,0.00030993,4]
[328171461,1716996645420,-281.83220357,0.00030993,4]
[328171462,1716996645429,-154.93802479,0.00030993,4]
[328171463,1716996645439,-1871.01679575,0.00030993,4]
[328171464,1716996645448,-151.0,0.00030993,2]
[328171465,1716996645458,-574.886322,0.00030993,2]
[328171466,1716996645468,-574.886322,0.00030993,2]
[328171467,1716996645477,-152.800291,0.00030993,2]
[328171468,1716996645487,-152.800291,0.00030993,2]
[328171469,1716996645496,-154.590921,0.00030993,2]
[328171470,1716996645506,-154.590921,0.00030993,2]
[328171471,1716996645515,-287.095237,0.00030993,2]
[328171472,1716996645524,-287.095237,0.00030993,2]
[328171473,1716996645533,-151.0,0.00030993,2]
[328171474,1716996645543,-188.994746,0.00030993,2]
[328171475,1716996645553,-188.994746,0.00030993,2]
[328171476,1716996645562,-155.18257432,0.00030994,4]
[328171477,1716996645572,-154.84515485,0.00030994,4]
[328171478,1716996645581,-456.78558336,0.00030994,4]
[328171479,1716996645591,-1392.89657086,0.00030995,2]
[328171480,1716996645698,-2865.0,0.00030995,2]
[328171528,1716996647076,-154.84515485,0.00029999,2]
[328171529,1716996647086,-1978.78775893,0.00029999,2]
[328171531,1716996647097,-753.36711136,0.00029999,2]
[328171533,1716996647106,-274.61813161,0.00029999,2]
[328171535,1716996647115,-4135.09037555,0.00029999,2]
[328171537,1716996647124,-24822.12808059,0.00030995,2]
[328171538,1716996647133,-151.0,0.00030995,2]
[328171540,1716996647142,-151.0,0.00030995,2]
[328171541,1716996647151,-151.0,0.00030995,2]
[328171542,1716996647160,-151.0,0.00030995,2]
[328171543,1716996647169,-324.897162,0.00030995,2]
[328171544,1716996647179,-324.897162,0.00030995,2]
[328171545,1716996647188,-664.333733,0.00030995,2]
[328171546,1716996647197,-664.333733,0.00030995,2]
[328171547,1716996647206,-1128.135364,0.00030995,2]
[328171548,1716996647216,-151.0,0.00030995,2]
[328171549,1716996647225,-1128.135364,0.00030995,2]
[328171550,1716996647234,-231.08206128,0.00030996,4]
[328171551,1716996647243,-154.95351395,0.00030996,4]
[328171552,1716996647253,-410.95040232,0.00030996,4]
[328171553,1716996647262,-529.12999576,0.00030996,4]
[328171554,1716996647271,-1498.23255871,0.00030996,4]
[328171555,1716996647281,-720.80072405,0.00030996,4]
[328171556,1716996647294,-1406.5151851,0.00030996,4]
[328171557,1716996647304,-155.10934266,0.00030996,4]
[328171558,1716996647315,-169.58658304,0.00030996,4]
[328171559,1716996647325,-156.15637672,0.00030996,4]
[328171560,1716996647334,-1933.29881571,0.00030996,2]
[328171561,1716996647345,-1598.72803872,0.00030996,4]
[328171562,1716996647354,-151.0,0.00030996,2]
[328171563,1716996647365,-151.0,0.00030996,2]
[328171564,1716996647374,-151.0,0.00030996,2]
[328171565,1716996647383,-151.0,0.00030996,2]
[328171566,1716996647392,-151.0,0.00030996,2]
[328171567,1716996647400,-151.0,0.00030996,2]
[328171568,1716996647409,-500.0,0.00030996,4]
[328171569,1716996647419,-151.0,0.00030996,2]
[328171570,1716996647428,-276.425076,0.00030996,2]
[328171571,1716996647437,-180.325062,0.00030996,2]
[328171572,1716996647446,-180.325062,0.00030996,2]
[328171573,1716996647455,-151.0,0.00030996,2]
[328171574,1716996647465,-151.0,0.00030996,2]
[328171575,1716996647474,-151.0,0.00030996,2]
[328171576,1716996647483,-151.0,0.00030996,2]
[328171577,1716996647492,-151.0,0.00030996,2]
[328171578,1716996647501,-9418.00379894,0.00030997,2]
[328171579,1716996647511,-3000.0,0.00030997,10]
[328171580,1716996647520,-3000.0,0.00030997,10]
[328171581,1716996647530,-3000.0,0.00030997,10]
[328171582,1716996647539,-2797.10321342,0.00030997,10]
[328171583,1716996647548,-167.56736284,0.00030997,4]
[328171584,1716996647558,-151.0,0.00030997,2]
[328171585,1716996647567,-574.886322,0.00030997,2]
[328171586,1716996647577,-574.886322,0.00030997,2]
[328171587,1716996647586,-152.800291,0.00030997,2]
[328171588,1716996647597,-152.800291,0.00030997,2]
[328171589,1716996647607,-154.590921,0.00030997,2]
[328171590,1716996647616,-154.590921,0.00030997,2]
[328171591,1716996647625,-287.095237,0.00030997,2]
[328171592,1716996647634,-287.095237,0.00030997,2]
[328171593,1716996647644,-151.0,0.00030997,2]
[328171594,1716996647653,-188.994746,0.00030997,2]
[328171595,1716996647662,-188.994746,0.00030997,2]
[328171596,1716996647671,-151.0,0.00030998,2]
[328171597,1716996647680,-151.0,0.00030998,2]
[328171598,1716996647690,-151.0,0.00030998,2]
[328171599,1716996647699,-151.0,0.00030998,2]
[328171600,1716996647709,-151.0,0.00030998,2]
[328171601,1716996647718,-151.0,0.00030998,2]
[328171602,1716996647727,-151.0,0.00030998,2]
[328171603,1716996647736,-151.0,0.00030998,2]
[328171604,1716996647746,-180.325062,0.00030998,2]
[328171605,1716996647755,-180.325062,0.00030998,2]
[328171606,1716996647766,-151.0,0.00030998,2]
[328171607,1716996647775,-151.0,0.00030998,2]
[328171608,1716996647785,-197.396899,0.00030998,2]
[328171609,1716996647794,-151.0,0.00030998,2]
[328171610,1716996647804,-151.0,0.00030998,2]
[328171611,1716996647813,-151.0,0.00030998,2]
[328171612,1716996647823,-151.0,0.00030998,2]
[328171613,1716996647832,-151.0,0.00030998,2]
[328171614,1716996647841,-324.897162,0.00030998,2]
[328171615,1716996647853,-324.897162,0.00030998,2]
[328171616,1716996647862,-664.333733,0.00030998,2]
[328171617,1716996647871,-664.333733,0.00030998,2]
[328171618,1716996647880,-1128.135364,0.00030998,2]
[328171619,1716996647890,-151.0,0.00030998,2]
[328171620,1716996647901,-1128.135364,0.00030998,2]
[328171621,1716996647910,-221.023,0.00031036,2]
[328171622,1716996647919,-611.453,0.00031036,2]
[328171623,1716996647928,-205.18,0.000311,3]
[328171624,1716996647938,-205.18,0.000311,3]
[328171625,1716996647947,-205.18,0.000311,3]
[328171626,1716996647957,-205.18,0.000311,3]
[328171627,1716996647966,-205.18,0.000311,3]
[328171628,1716996647975,-205.18,0.000311,3]
[328171629,1716996647984,-205.18,0.000311,3]
[328171630,1716996647994,-205.18,0.000311,3]
[328171631,1716996648003,-205.18,0.000311,3]
[328171632,1716996648013,-205.18,0.000311,3]
[328171633,1716996648023,-205.18,0.000311,3]
[328171634,1716996648033,-205.18,0.000311,3]
[328171635,1716996648042,-205.18,0.000311,3]
[328171636,1716996648052,-205.18,0.000311,3]
[328171637,1716996648062,-205.18,0.000311,3]
[328171638,1716996648072,-205.18,0.000311,3]
[328171639,1716996648081,-205.18,0.000311,3]
[328171640,1716996648091,-205.18,0.000311,3]
[328171641,1716996648102,-205.18,0.000311,3]
[328171642,1716996648112,-205.18,0.000311,3]
[328171643,1716996648121,-156.62406709,0.00031209,7]
[328171644,1716996648131,-160.495791,0.00031421,2]
[328171645,1716996648140,-449.01034019,0.00032,4]
[328171646,1716996648149,-167.0,0.000325,5]
[328171647,1716996648158,-156.62406709,0.00032649,7]
[328171648,1716996648168,-151.0,0.00032849,7]
[328171649,1716996648178,-500.0,0.00032876,7]
[328171650,1716996648187,-7667.17002194,0.00032908,4]
[328171651,1716996648197,-283.67803753,0.00032909,4]
[328171652,1716996648206,-205.18,0.00033,3]
[328171653,1716996648216,-205.18,0.00033,3]
[328171654,1716996648226,-205.18,0.00033,3]
[328171655,1716996648237,-205.18,0.00033,3]
[328171656,1716996648246,-205.18,0.00033,3]
[328171657,1716996648256,-205.18,0.00033,3]
[328171658,1716996648265,-205.18,0.00033,3]
[328171659,1716996648275,-205.18,0.00033,3]
[328171660,1716996648285,-205.18,0.00033,3]
[328171661,1716996648296,-205.18,0.00033,3]
[328171662,1716996648307,-205.18,0.00033,3]
[328171663,1716996648317,-205.18,0.00033,3]
[328171664,1716996648326,-205.18,0.00033,3]
[328171665,1716996648337,-205.18,0.00033,3]
[328171666,1716996648352,-205.18,0.00033,3]
[328171667,1716996648362,-205.18,0.00033,3]
[328171668,1716996648373,-205.18,0.00033,3]